[Event "MCC Labor Day Schev 2024"]
[Site "New York"]
[Date "2024.09.02"]
[Round "8.6"]
[White "Martin Del Campo Cardenas, Roberto Abel"]
[Black "Stern, Kevin B"]
[Result "1-0"]
[ECO "B22"]
[WhiteElo "2216"]
[BlackElo "1920"]
[Annotator "TA"]
[PlyCount "73"]
[EventDate "2024.08.28"]
[EventType "schev"]
[EventCountry "USA"]
[SourceTitle "playchess.com"]
[Source "ChessBase"]
[SourceQuality "1"]
[TimeControl "5400+30"]

{[%evp 14,73,6,-5,9,7,0,0,0,6,9,-27,7,0,47,5,57,63,49,56,74,-11,71,-101,-119,-119,-117,-121,-126,-115,0,0,92,102,159,164,163,146,134,114,218,219,306,272,257,252,269,273,271,262,276,167,159,148,275,206,289,280,496,473,452,456]} 1. e4 {[%emt 0:03:30][%cal Be2e4,Be4e5][%mdl 32]} c5 {[%emt 0:00:05]} 2. Nf3 {[%emt 0:01:02]} Nf6 {[%emt 0:00:05]} 3. e5 {[%emt 0:11:17]} Nd5 {[%emt 0:00:07]} 4. d4 {[%emt 0:06:12]} cxd4 {[%emt 0:00:06]} 5. c3 {[%emt 0:00:10]} d6 {[%emt 0:01:13]} 6. cxd4 {[%emt 0:00:51]} Nc6 {[%emt 0:00:05]} 7. Bc4 {[%emt 0:00:43]} dxe5 {[%emt 0:00:19]} 8. dxe5 {[%emt 0:00:36]} Be6 {[%emt 0:00:06][%cal Od5e3]} 9. O-O {[%emt 0:03:14]} g6 {[%emt 0:00:20]} 10. Qe2 {[%emt 0:02:44]} Bg7 {[%emt 0:04:00] The position is equal.} 11. Rd1 {[%emt 0:26:10]} Qa5 $1 {[%emt 0:03:22]} 12. Nbd2 {[%emt 0:09:27][%cal Bb1d2,Bd2b3,Bb3c5,Bc5e6][%mdl 32] Nb3 would now be deadly.} Rd8 {[%emt 0:05:10]} 13. Nb3 {[%emt 0:02:45]} Qc7 {[%emt 0:06:27]} (13... Qb6 $11 {is superior.}) 14. Nc5 {[%emt 0:04:27]} O-O {[%emt 0:13:09]} (14... Nc3 $1 $11 15. Rxd8+ (15. bxc3 Rxd1+ 16. Qxd1 Bxc4 $17) 15... Nxd8 16. bxc3 Qxc5 17. Bb5+ Nc6) 15. Nxe6 $14 {[%emt 0:06:42]} fxe6 {[%emt 0:00:21]} 16. Ng5 $1 {[%emt 0:00:22]} Qc8 {[%emt 0:08:10] [#]} 17. f4 {[%emt 0:02:29]} h6 {[%emt 0:07:34] [#]} (17... Bh6 $1 $11) 18. Nxe6 $2 {[%emt 0:01:41]} Qxe6 $17 {[%emt 0:01:18]} 19. Qe4 {[%emt 0:00:04]} Ncb4 {[%emt 0:03:01][%cal Ob7b5]} 20. a3 {[%emt 0:00:04] [#]} Kh7 $1 {[%emt 0:04:51]} 21. Bd2 {[%emt 0:06:42] [#]} (21. axb4 $2 Qb6+ 22. Kf1 (22. Kh1 $2 Nc3 $19) 22... Nc3 (22... Nxb4 $2 23. Be3 $18) 23. bxc3 Rxd1+ 24. Ke2 Qg1 $19) 21... Na6 {[%emt 0:06:42]} (21... b5 $1 $17 22. Bf1 Na6) 22. Ba5 $36 {[%emt 0:00:17][%csl LRd5,LRd8][%cal Oa5d8][%mdl 2048] Dodges Qb6+. White fights for an advantage. A strong pair of Bishops.} b6 {[%emt 0:15:59]} (22... Rxf4 $11 23. Qxf4 (23. Bxd5 $2 {loses.} Rxe4 24. Bxe6 Rxd1+ 25. Rxd1 Rxe5 $19) 23... Nxf4 24. Bxe6 Rxd1+ 25. Rxd1 Nxe6) 23. Rxd5 $16 {[%emt 0:01:25] Black is weak on the light squares} Qc8 {[%emt 0:01:04]} ({Black should try} 23... Qc6 24. Bb4 b5) 24. Rxd8 {[%emt 0:03:41]} Rxd8 {[%emt 0:00:50]} 25. Bc3 {[%emt 0:00:12]} Nc5 {[%emt 0:00:36] Dodges Bd3} 26. Qc2 {[%emt 0:00:34]} Qg4 {[%emt 0:01:43]} (26... Ne6 $16 27. Qe4 Nc5) 27. Rf1 $18 {[%emt 0:00:22]} Rc8 {[%emt 0:01:26]} 28. h3 {[%emt 0:01:15]} Qf5 {[%emt 0:00:44]} 29. Qxf5 {[%emt 0:01:48]} gxf5 {[%emt 0:00:18]} 30. g4 {[%emt 0:00:20]} fxg4 {[%emt 0:00:42]} 31. hxg4 {[%emt 0:00:02]} Kh8 {[%emt 0:00:29]} 32. f5 {[%emt 0:01:02] aiming for f6.} Ne4 {[%emt 0:02:00]} 33. Be6 {[%emt 0:00:21]} Rc7 {[%emt 0:01:14]} (33... Rd8 $16) 34. f6 {[%emt 0:00:50]} exf6 {[%emt 0:00:28]} (34... Bf8 {was necessary.} 35. Rd1 (35. Bb4 a5 $16) 35... exf6) 35. exf6 {[%emt 0:00:04]} Bf8 {[%emt 0:00:21]} (35... Nxc3 {might work better.} 36. fxg7+ Kxg7 37. bxc3 Rc6) 36. Be5 {[%emt 0:00:53] White wants to mate with f7+.} Rc5 {[%emt 0:00:09]} 37. Bd4 {[%emt 0:00:06] Weighted Error Value: White=0.22 (precise) /Black=0.53.  Mistake:       	White=2     	Black=10     Inaccurate:     	White=3     	Black=2      OK:         	White=12    	Black=9      Best:        	White=4     	Black=1      Strong:       	White=1     	Black=1} 1-0

[Event "MCC Labor Day Schev 2024"]
[Site "New York"]
[Date "2024.09.02"]
[Round "8.7"]
[White "Aravindakshan, Sahana"]
[Black "Nasta, Kiren Vivek"]
[Result "0-1"]
[ECO "D85"]
[WhiteElo "2003"]
[BlackElo "2148"]
[Annotator "TA"]
[PlyCount "84"]
[EventDate "2024.08.28"]
[EventType "schev"]
[EventCountry "USA"]
[SourceTitle "playchess.com"]
[Source "ChessBase"]
[SourceQuality "1"]
[TimeControl "5400+30"]

{[%evp 15,84,14,6,2,18,4,-2,-3,0,0,0,0,0,0,0,0,0,-27,-25,-154,-161,-154,-155,-154,-159,-151,-159,-212,-212,-506,-500,-486,-500,-502,-487,-504,-474,-517,-517,-1187,-1168,-1081,-1056,-29979,-29980,-29980,-29981,-29981,-29982,-29982,-29983,-29983,-29984,-29984,-29985,-29985,-29971,-29970,-6671,-6671,-6671,-29995,-29996,-29996,-29997,-29997,-6671,-6070,-5569,-5543,-5481]} 1. d4 {[%emt 0:00:01]} Nf6 {[%emt 0:00:13]} 2. c4 {[%emt 0:00:04]} g6 {[%emt 0:00:05]} 3. Nc3 {[%emt 0:00:03]} d5 {[%emt 0:00:04]} 4. cxd5 {[%emt 0:00:02]} Nxd5 {[%emt 0:00:14]} 5. e4 {[%emt 0:00:07]} Nxc3 {[%emt 0:00:06]} 6. bxc3 {[%emt 0:00:03]} Bg7 {[%emt 0:00:04]} 7. Qa4+ {[%emt 0:00:05]} Nd7 {[%emt 0:00:09][%cal Bb8d7,Bd7b6,Bb6a4,Ba4c3][%mdl 32]} 8. Nf3 {[%emt 0:00:11]} O-O {[%emt 0:00:07]} 9. Be2 {[%emt 0:00:06]} Nb6 {[%emt 0:00:06]} 10. Qa5 {[%emt 0:00:35]} Bg4 {[%emt 0:00:15][%cal Oe7e5]} 11. O-O {[%emt 0:00:59] [#] The position is equal.} c5 $1 {[%emt 0:00:24]} 12. Qxc5 {[%emt 0:03:28]} Na4 {[%emt 0:00:52]} 13. Qb4 {[%emt 0:02:27][%csl LRa4,LRb7]} Bxf3 $1 {[%emt 0:00:06]} 14. Bxf3 {[%emt 0:01:06]} (14. gxf3 $2 Nxc3 15. Qxc3 Bxd4 $19 (15... Qxd4 16. Qxd4 Bxd4 17. Rb1 $18)) 14... Nxc3 {[%emt 0:00:15]} 15. e5 {[%emt 0:09:02]} (15. Qxc3 Bxd4 (15... Qxd4 $2 16. Qxd4 Bxd4 17. Rb1 $18) 16. Qe1 Bxa1 $17) (15. Be3 $5 Rc8 $8 16. e5 $11) 15... Rc8 {[%emt 0:00:28]} 16. Ba3 {[%emt 0:22:21][%cal Oa1e1]} b5 {[%emt 0:06:54]} 17. Bg4 {[%emt 0:11:26] Black keeps a firm grip on the game.} (17. Qxe7 $11 {keeps the balance.} Qxd4 18. e6) 17... Rc4 {[%emt 0:04:55]} 18. Qxe7 {[%emt 0:00:36]} Qxd4 {[%emt 0:02:51]} 19. Bd1 {[%emt 0:05:03]} b4 $1 {[%emt 0:09:35] Black is more active.} (19... Qxe5 20. Qxe5 Bxe5 21. Re1 $17 (21. Bxf8 Kxf8 22. Bf3 Rb4 $15)) 20. Bb2 {[%emt 0:01:00]} Bxe5 {[%emt 0:02:31]} ({Don't play} 20... Qxe5 21. Qxe5 Bxe5 22. a3 $17) 21. Bxc3 {[%emt 0:00:38]} (21. g3 $17 {was worth a try.}) 21... bxc3 $19 {[%emt 0:01:05]} 22. Bb3 $2 {[%emt 0:01:00] White is weak on the dark squares} (22. Bc2) 22... Rc7 {[%emt 1:10:11]} 23. Qa3 {[%emt 0:00:29]} c2 {[%emt 0:00:00] Repels Rad1} 24. Rac1 {[%emt 0:01:42]} Rfc8 {[%emt 0:00:00] Strongly threatening ...Bf4.} 25. g3 {[%emt 0:01:06]} Bg7 {[%emt 0:00:00]} 26. Kg2 {[%emt 0:11:38]} Bh6 {[%emt 0:00:00]} 27. f4 {[%emt 0:00:51]} (27. Qa4 $142 Qxa4 28. Bxa4) 27... Qe4+ {[%emt 0:00:00]} 28. Kh3 {[%emt 0:02:02]} Rc5 {[%emt 0:00:00] ( -> ...Rh5+)} 29. Rfe1 {[%emt 0:05:33]} Rh5+ {[%emt 0:00:00]} 30. Kg4 {[%emt 0:00:02]} Qf5+ {[%emt 0:00:00]} 31. Kf3 {[%emt 0:00:06]} Rc3+ {[%emt 0:00:00]} 32. Re3 {[%emt 0:01:02]} Rxe3+ {[%emt 0:00:00]} 33. Kxe3 {[%emt 0:00:06] [#]} Bxf4+ $1 {[%emt 0:00:00][%mdl 512]} 34. gxf4 {[%emt 0:00:34]} Rh3+ {[%emt 0:00:00]} 35. Kd4 {[%emt 0:02:49]} Rd3+ {[%emt 0:00:00]} ({Worse is} 35... Rxh2 36. Qxa7 Qxf4+ 37. Kc3 $11) 36. Kc4 {[%emt 0:00:20]} Qd5+ {[%emt 0:00:00]} (36... Qxf4+ $2 {loses.} 37. Kxd3 Kg7 38. Kxc2 $18) 37. Kb4 {[%emt 0:00:44]} Qd6+ {[%emt 0:00:00]} 38. Ka4 {[%emt 0:01:12]} Rd4+ {[%emt 0:00:00]} 39. Bc4 {[%emt 0:00:03]} Rxc4+ {[%emt 0:00:00]} 40. Kb3 {[%emt 0:00:03] [#]} Rc3+ {[%emt 0:00:00]} 41. Kxc3 {[%emt 0:00:05]} Qxa3+ {[%emt 0:00:00]} 42. Kxc2 {[%emt 0:00:06]} Qxa2+ {[%emt 0:00:00] Weighted Error Value: White=0.75/Black=0.12 (very precise) .  Mistake:       	White=4     	---        Inaccurate:     	White=1     	---        OK:         	White=6     	Black=12     Best:        	White=1     	Black=2      Strong:       	---       	Black=2} 0-1

[Event "MCC Labor Day Schev 2024"]
[Site "New York"]
[Date "2024.09.02"]
[Round "8.8"]
[White "Sloan, Jed"]
[Black "Khodzhamkuliev, Bahadur"]
[Result "1/2-1/2"]
[ECO "B51"]
[WhiteElo "2039"]
[BlackElo "2187"]
[Annotator "TA"]
[PlyCount "158"]
[EventDate "2024.08.28"]
[EventType "schev"]
[EventCountry "USA"]
[SourceTitle "playchess.com"]
[Source "ChessBase"]
[SourceQuality "1"]
[TimeControl "5400+30"]

{[%evp 49,158,206,214,218,209,212,208,189,182,182,218,215,225,225,234,239,247,225,222,166,241,247,237,233,233,237,219,225,236,223,236,216,212,136,150,86,187,181,188,190,275,261,261,219,203,0,223,206,1122,998,1544,1547,831,1476,1418,1577,1423,1229,1065,1223,1224,501,491,488,461,243,416,0,459,335,479,29,272,44,44,43,44,44,225,226,226,235,235,235,286,44,108,101,237,44,44,0,0,0,44,44,44,44,49,49,757,620,1075,0,0,0,0,0,0,0,0]} 1. e4 {[%emt 0:00:01]} c5 {[%emt 0:08:49]} 2. Nf3 {[%emt 0:00:06]} d6 {[%emt 0:00:09]} 3. Bb5+ {[%emt 0:00:07]} Nd7 {[%emt 0:00:15]} 4. O-O {[%emt 0:00:17]} Ngf6 {[%emt 0:00:10]} 5. Re1 {[%emt 0:00:08]} a6 {[%emt 0:00:21]} 6. Bd3 {[%emt 0:01:47] B51: Sicilian: Moscow Variation (3 Bb5+) without 3...Bd7.} g6 {[%emt 0:02:54]} 7. c3 {[%emt 0:00:23]} Bg7 {[%emt 0:01:19]} 8. Bc2 {[%emt 0:00:14]} Ne5 {[%emt 0:05:12]} 9. d4 {[%emt 0:02:24]} Nxf3+ {[%emt 0:01:26]} 10. Qxf3 {[%emt 0:01:47]} Nd7 {[%emt 0:03:23]} 11. Be3 {[%emt 0:07:40]} Qc7 {[%emt 0:03:41]} 12. Bb3 {[%emt 0:03:45]} c4 $146 {[%emt 0:01:25]} ({Predecessor:} 12... O-O 13. Nd2 Rb8 14. Nf1 b5 15. dxc5 dxc5 16. Bf4 e5 17. Bc1 c4 18. Bc2 Bb7 {1-0 Kasparov,S (2453)-Bernadskiy,V (2547) Goa op 1st Taleigao 2018 (9)}) 13. Bc2 {[%emt 0:00:29]} b5 {[%emt 0:05:39]} 14. e5 {[%emt 0:08:00]} Bb7 {[%emt 0:12:12]} 15. exd6 {[%emt 0:04:31]} Bxf3 {[%emt 0:00:28]} 16. dxc7 {[%emt 0:00:04]} Bc6 {[%emt 0:01:06]} 17. Bf4 {[%emt 0:03:36]} Nb6 {[%emt 0:50:31]} 18. Nd2 {[%emt 0:01:17]} Nd5 {[%emt 0:00:00]} 19. Be4 {[%emt 0:01:57]} Kd7 {[%emt 0:00:00]} 20. Bxd5 {[%emt 0:00:43]} Bxd5 {[%emt 0:00:00]} 21. Re2 {[%emt 0:03:11]} f5 {[%emt 0:00:00]} 22. b3 {[%emt 0:03:43]} e6 {[%emt 0:00:00]} 23. bxc4 {[%emt 0:01:04]} bxc4 {[%emt 0:00:00]} 24. Rb1 {[%emt 0:02:08]} g5 {[%emt 0:00:00]} 25. Bxg5 {[%emt 0:01:35]} Rhg8 {[%emt 0:00:00]} 26. Bd8 {[%emt 0:08:48]} Rc8 {[%emt 0:00:00]} 27. g3 {[%emt 0:02:33]} Bf8 {[%emt 0:00:00]} 28. f3 {[%emt 0:06:15]} Bd6 {[%emt 0:00:00]} 29. Kf2 {[%emt 0:01:31]} Bxc7 {[%emt 0:00:00]} 30. Bxc7 {[%emt 0:00:19]} Kxc7 {[%emt 0:00:00]} 31. Rb4 {[%emt 0:06:46]} a5 {[%emt 0:00:00]} 32. Rb5 {[%emt 0:01:18]} Kd6 {[%emt 0:00:00]} 33. Rxa5 {[%emt 0:00:47]} Ra8 {[%emt 0:00:00]} 34. Rc5 {[%emt 0:00:43]} Rgc8 {[%emt 0:00:00]} (34... Ra4 $142 35. a3 Rg7) 35. Rxc8 $18 {[%emt 0:01:24]} Rxc8 {[%emt 0:00:00]} 36. Nf1 {[%emt 0:07:17]} Rb8 {[%emt 0:00:00]} 37. Ne3 {[%emt 0:00:18]} Rb1 {[%emt 0:00:00]} 38. Nxd5 {[%emt 0:02:14]} exd5 {[%emt 0:00:00]} 39. Rc2 {[%emt 0:00:39]} f4 {[%emt 0:00:00]} 40. gxf4 {[%emt 0:01:55]} Ke6 {[%emt 0:00:00]} 41. Ke3 {[%emt 0:01:25]} Kf5 {[%emt 0:00:00]} 42. a4 {[%emt 0:02:08]} ({White should play} 42. Rg2 Re1+ 43. Kf2) 42... Re1+ {[%emt 0:00:00]} (42... Rb3 $16) 43. Kf2 $18 {[%emt 0:03:39]} Ra1 {[%emt 0:00:00]} 44. Kg3 $1 {[%emt 0:00:33]} Rg1+ {[%emt 0:00:00]} (44... Rxa4 $142 45. Re2 Kf6) 45. Rg2 $18 {[%emt 0:00:40]} Rc1 {[%emt 0:03:44]} ({Worse is} 45... Rxg2+ 46. Kxg2 Ke6 47. a5 Kd7 48. f5 h6 49. a6 Kc7 50. f6) 46. Re2 {[%emt 0:00:40]} Rg1+ {[%emt 0:00:19]} 47. Rg2 {[%emt 0:01:47]} Rc1 {[%emt 0:00:06]} 48. Ra2 {[%emt 0:00:33]} ({Resist} 48. Re2 $6 Rg1+ 49. Kf2 Ra1 $16) 48... Rxc3 $2 {[%emt 0:00:42]} (48... Rg1+ 49. Rg2) 49. a5 $18 {[%emt 0:00:05]} Rc1 {[%emt 0:01:55]} 50. a6 {[%emt 0:01:05]} Rg1+ {[%emt 0:00:06]} 51. Kf2 {[%emt 0:00:27]} Rg8 {[%emt 0:00:10]} 52. a7 {[%emt 0:01:43]} Ra8 {[%emt 0:00:16]} 53. Ke3 {[%emt 0:01:08]} Re8+ {[%emt 0:02:24]} 54. Kd2 {[%emt 0:07:53]} Ra8 {[%emt 0:00:05]} 55. Kc3 {[%emt 0:00:00]} (55. Ra6 $142 h5 56. Kc3) 55... Kxf4 $18 {[%emt 0:00:34]} 56. Ra5 {[%emt 0:00:00]} Kxf3 {[%emt 0:00:13]} 57. Rxd5 {[%emt 0:00:00]} Rxa7 {[%emt 0:00:09]} 58. Kxc4 $2 {[%emt 0:00:00]} ({Better is} 58. Re5 $18) 58... Kg4 $2 {[%emt 0:01:41][%mdl 8192]} (58... Ra4+ $1 $11 59. Kc3 Ra3+ 60. Kc4 Ra4+ 61. Kc3 Ra3+ 62. Kb4 Ke4) 59. Re5 $18 {[%emt 0:00:00]} Ra2 {[%emt 0:01:05]} (59... Kf4 {is a better defense.} 60. Re2 Kf3) 60. Re4+ $2 {[%emt 0:00:00]} ({White has to play} 60. h3+ $1 $18 Kxh3 61. Rh5+ Kg4 62. Rxh7) 60... Kg5 $2 {[%emt 0:03:31]} (60... Kf5 $11 61. Re5+ Kg6) 61. h4+ $2 {[%emt 0:00:00]} ({White must play} 61. h3 $1 $18) 61... Kf5 $14 {[%emt 0:00:28]} 62. Re5+ {[%emt 0:00:00]} Kf6 {[%emt 0:01:02]} 63. Rh5 {[%emt 0:01:18]} Ra4+ $2 {[%emt 0:00:46]} (63... Kg6 $1 $14 64. Rc5 Kf6) 64. Kd3 $18 {[%emt 0:00:06]} Kg6 {[%emt 0:00:08]} 65. Rg5+ {[%emt 0:00:10]} Kf6 {[%emt 0:00:15]} 66. Ke4 {[%emt 0:00:27]} Ra1 {[%emt 0:00:29] [#]} 67. Re5 $2 {[%emt 0:01:38]} (67. Rf5+ $1 $18 Ke6 68. Rh5 Re1+ 69. Kd3) 67... Re1+ $14 {[%emt 0:01:36]} 68. Kd5 {[%emt 0:00:24]} Rd1 {[%emt 0:00:11] [#]} ({Weaker is} 68... Rxe5+ 69. dxe5+ Ke7 70. e6 h5 71. Ke5 Ke8 72. Kf6 Kf8 73. Kg6) (68... Ra1 $16 {might work better.}) 69. h5 $2 {[%emt 0:01:14]} (69. Re6+ $1 $18 Kf7 70. Re4) 69... h6 $14 {[%emt 0:00:18]} 70. Re8 {[%emt 0:01:21]} Kg5 {[%emt 0:00:23]} 71. Re5+ {[%emt 0:00:33]} Kf6 {[%emt 0:00:05]} 72. Kc5 {[%emt 0:00:09]} Rc1+ {[%emt 0:00:17]} 73. Kd6 {[%emt 0:00:14]} Ra1 {[%emt 0:00:06]} 74. Rc5 {[%emt 0:00:48]} Ra4 $2 {[%emt 0:01:13][%mdl 8192]} (74... Ra8 $14) 75. d5 $18 {[%emt 0:00:31]} Ra7 {[%emt 0:01:22]} 76. Kc6 $2 {[%emt 0:00:58]} (76. Rc3 $18 {And now Rf3+ would win.} Ra6+ 77. Kc7 Ra7+ 78. Kb6) 76... Ke5 $1 $11 {[%emt 0:00:56]} 77. Rb5 {[%emt 0:00:55]} (77. Rc1 $5 Ra6+ $8 78. Kc5 Ra5+ 79. Kc6 Ra6+ 80. Kc5 Ra5+ 81. Kc6 Ra6+ $11) 77... Ra6+ {[%emt 0:00:19]} 78. Kc5 {[%emt 0:00:09]} Ra1 {[%emt 0:00:24]} 79. d6 {[%emt 0:00:37]} Rc1+ {[%emt 0:00:39]} 1/2-1/2

[Event "MCC Labor Day Schev 2024"]
[Site "New York"]
[Date "2024.09.02"]
[Round "8.9"]
[White "Hoffman, Luc"]
[Black "Zaderman, Vitaly"]
[Result "1-0"]
[ECO "A45"]
[WhiteElo "2067"]
[BlackElo "2093"]
[Annotator "TA"]
[PlyCount "75"]
[EventDate "2024.08.28"]
[EventType "schev"]
[EventCountry "USA"]
[SourceTitle "playchess.com"]
[Source "ChessBase"]
[SourceQuality "1"]
[TimeControl "5400+30"]

{[%evp 9,75,21,33,22,67,56,81,80,91,89,87,57,86,77,92,92,95,72,75,70,154,78,67,68,69,36,21,29,85,41,109,0,0,0,0,0,-16,-12,254,256,195,0,133,0,0,-31,0,0,0,89,182,169,119,74,340,92,2793,4994,2851,2439,5397,4898,29986,29987,29987,29988,29994,29993]} 1. d4 {[%emt 0:00:01]} Nf6 {[%emt 0:07:53]} 2. Bg5 {[%emt 0:00:11]} d6 {[%emt 0:00:24]} 3. Bxf6 {[%emt 0:00:26]} gxf6 {[%emt 0:00:26]} 4. c4 {[%emt 0:00:41]} Bg7 {[%emt 0:00:24]} 5. Nc3 {[%emt 0:00:20]} f5 {[%emt 0:00:17]} 6. e3 {[%emt 0:00:49]} Rg8 {[%emt 1:24:06]} 7. g3 {[%emt 0:02:53]} Nd7 {[%emt 0:00:00]} 8. Bg2 {[%emt 0:00:11] White is better.} Nf6 {[%emt 0:00:00]} 9. Nge2 {[%emt 0:00:45]} c6 {[%emt 0:00:00]} 10. Qd3 {[%emt 0:02:04]} Bd7 {[%emt 0:00:00]} 11. b4 {[%emt 0:01:52]} Qc7 {[%emt 0:00:00]} 12. a4 {[%emt 0:01:44]} e5 {[%emt 0:00:00]} 13. a5 {[%emt 0:01:39]} e4 {[%emt 0:00:00]} 14. Qd2 {[%emt 0:01:30]} c5 {[%emt 0:00:00]} ({Black should try} 14... d5 $14) 15. Nb5 {[%emt 0:06:35]} (15. Rb1 $142) 15... Bxb5 $16 {[%emt 0:00:00]} 16. cxb5 {[%emt 0:00:01]} c4 {[%emt 0:00:00]} 17. Nc3 {[%emt 0:02:31]} d5 {[%emt 0:00:00]} 18. O-O {[%emt 0:00:56]} Qd6 {[%emt 0:00:00]} (18... Rd8 $11) 19. Na4 {[%emt 0:01:06]} Ke7 {[%emt 0:00:00]} ({Black should play} 19... Bf8 $14) 20. Nc5 {[%emt 0:01:59]} ({Better is} 20. b6 $16) 20... b6 $11 {[%emt 0:00:00]} 21. Na4 {[%emt 0:02:25]} h5 {[%emt 0:00:00][%cal Oh5h4]} 22. Bh3 {[%emt 0:03:35]} Ng4 {[%emt 0:00:00][%cal Oh5h4]} 23. f3 {[%emt 0:00:35]} Nh6 {[%emt 0:00:00][%mdl 8192]} (23... exf3 $11 24. Rxf3 Qe6) 24. fxe4 $18 {[%emt 0:00:40]} fxe4 {[%emt 0:09:00][%cal Oh5h4]} 25. Qf2 $2 {[%emt 0:01:09]} (25. Qe2 $18) 25... Bf6 {[%emt 0:00:00] [#]} (25... h4 $1 $11 {keeps the balance.}) 26. Nc5 {[%emt 0:03:36]} Bg5 $11 {[%emt 0:00:00]} (26... bxc5 $2 27. bxc5 $18) 27. Nd7 {[%emt 0:02:32]} f6 {[%emt 0:00:00] Wards off Ne5} (27... h4 $15 {keeps the upper hand.} 28. Ne5 hxg3 (28... Qxb4 $2 29. Nc6+ Kf8 30. Nxb4 $18) 29. hxg3 f6 (29... Qxb4 $2 30. Nc6+ Kf8 31. Nxb4 $18) 30. Nc6+ Kf8) 28. axb6 $16 {[%emt 0:02:46]} axb6 {[%emt 0:00:00]} 29. Ra6 {[%emt 0:00:03]} Ng4 {[%emt 0:00:00]} (29... Rxa6 $16 {might work better.} 30. bxa6 Kf7) 30. Bxg4 $18 {[%emt 0:01:37]} hxg4 {[%emt 0:00:00]} 31. Qf5 $36 {[%emt 0:03:13][%mdl 2048] White is really pushing. Dancing on a razor blade. White is more active.} Bxe3+ $2 {[%emt 0:00:00][%mdl 8192] [#]} (31... Qxd7 $2 32. Qh7+ (32. Rxb6 $2 Bxe3+ $19) 32... Ke6 (32... Kd6 $2 33. Rxb6+ Kc7 34. Rc6+ Kd8 35. Qxg8+ $18) 33. Rxb6+ $18) (31... Qe6 $16 {was necessary.} 32. Nxf6 (32. Qh7+ Qf7 $16) 32... Bxf6 (32... Qxf6 $2 33. Qxd5 Bxe3+ 34. Kg2 $18) 33. Qxe6+ Kxe6 34. Rxb6+ Kd7 35. Rbxf6 (35. Rfxf6 Ra1+ 36. Kf2 Rga8 $11) 35... Kc7) 32. Kh1 $2 {[%emt 0:02:01]} (32. Kg2 $1 $18 {and the rest is easy. Qh7+ would kill now.} Qe6 (32... Qxd7 33. Qxf6+ Ke8 34. Rxa8+) (32... Bxd4 $2 33. Qh7+ Ke6 34. Rxb6 $18) 33. Nxf6 (33. Rxb6 $2 Ra2+ $19) 33... Qxf5 34. Rxf5 (34. Nxg8+ Rxg8 35. Rxf5 Rd8 $11)) 32... Bxd4 $2 {[%emt 0:00:00][%mdl 8192]} ({Not} 32... Qxd7 33. Qxf6+ Ke8 34. Rxa8+) (32... Qe6 $16 33. Nxf6 (33. Rxb6 $2 {is the wrong capture.} Qxf5 34. Rxf6 Qxd7 $19) 33... Qxf5 34. Rxf5 (34. Nxg8+ $2 Rxg8 35. Rxf5 Rd8 $19) 34... Bxd4 (34... Rxa6 $2 35. Nxg8+ Ke6 36. bxa6 $18) 35. Nxg8+ Rxg8 36. Rxd5 Bc3) 33. Qh7+ {[%emt 0:00:39]} Ke6 {[%emt 0:04:30][%cal Be7e6,Be6d6,Bd6c7][%mdl 32] [#]} 34. Rxb6 $3 {[%emt 0:01:05][%mdl 512]} Qxb6 {[%emt 0:00:00]} (34... Rge8 35. Qf5+) 35. Nxb6 {[%emt 0:00:09] White threatens Qd7+ and mate.} Bxb6 {[%emt 0:00:00]} 36. Qf5+ {[%emt 0:00:06] White mates.} Kd6 {[%emt 0:00:00]} 37. Qxf6+ {[%emt 0:00:04]} Kc7 {[%emt 0:00:00]} 38. Qc6+ {[%emt 0:00:02] Weighted Error Value: White=0.46/Black=0.65.  Loses game:     	---       	Black=3      Missed win:     	White=2     	---        Mistake:       	White=3     	Black=6      Inaccurate:     	White=5     	Black=3      OK:         	White=6     	Black=5      Best:        	White=3     	Black=3} 1-0